[Event "Early-Titled-Tuesday-Blitz-March-19-2024"]
[Site "Chess.com"]
[Date "2024.03.19"]
[Round "10"]
[White "cande_francisco"]
[Black "DavidGavrilescu18"]
[Result "1-0"]
[WhiteElo "2562"]
[BlackElo "2770"]
[TimeControl "180+1"]
[EndTime "9:54:53 PDT"]
[Termination "cande_francisco won by checkmate"]

1. e4 {[%clk 0:02:57.3]} 1... c5 {[%clk 0:02:58.6]} 2. Nf3 {[%clk 0:02:57]} 2...
a6 {[%clk 0:02:59.2]} 3. c3 {[%clk 0:02:56.4]} 3... e6 {[%clk 0:02:59.5]} 4. d4
{[%clk 0:02:56.4]} 4... d5 {[%clk 0:03:00.4]} 5. exd5 {[%clk 0:02:47.4]} 5...
exd5 {[%clk 0:03:01.3]} 6. Bd3 {[%clk 0:02:44.5]} 6... c4 {[%clk 0:03:01.9]} 7.
Bc2 {[%clk 0:02:43.6]} 7... Bd6 {[%clk 0:03:02.8]} 8. O-O {[%clk 0:02:42.9]}
8... Ne7 {[%clk 0:03:03.7]} 9. Re1 {[%clk 0:02:42.5]} 9... O-O {[%clk 0:03:04]}
10. Bg5 {[%clk 0:02:42.6]} 10... f6 {[%clk 0:03:03.9]} 11. Bh4 {[%clk
0:02:42.8]} 11... Bf5 {[%clk 0:03:04.6]} 12. Nbd2 {[%clk 0:02:40.3]} 12... Nbc6
{[%clk 0:03:04.7]} 13. Bg3 {[%clk 0:02:37.7]} 13... Qd7 {[%clk 0:03:05.2]} 14.
Nf1 {[%clk 0:02:36.8]} 14... Rae8 {[%clk 0:03:04.8]} 15. Ne3 {[%clk 0:02:37]}
15... Bxc2 {[%clk 0:03:04.8]} 16. Qxc2 {[%clk 0:02:37.9]} 16... f5 {[%clk
0:02:59.5]} 17. Bxd6 {[%clk 0:02:36.2]} 17... Qxd6 {[%clk 0:02:59.6]} 18. Rad1
{[%clk 0:02:25.9]} 18... h6 {[%clk 0:02:59.2]} 19. b3 {[%clk 0:02:20]} 19...
cxb3 {[%clk 0:02:58.2]} 20. axb3 {[%clk 0:02:14.8]} 20... Qf6 {[%clk 0:02:44.4]}
21. c4 {[%clk 0:02:09.2]} 21... Rd8 {[%clk 0:02:41.2]} 22. Qc3 {[%clk
0:01:38.9]} 22... Kh8 {[%clk 0:02:36.1]} 23. Ne5 {[%clk 0:01:37.5]} 23... f4
{[%clk 0:02:29.6]} 24. Nxd5 {[%clk 0:01:26.5]} 24... Nxd5 {[%clk 0:02:27.7]} 25.
cxd5 {[%clk 0:01:27.1]} 25... Ne7 {[%clk 0:02:27.1]} 26. Qf3 {[%clk 0:01:22.6]}
26... Nxd5 {[%clk 0:02:25.6]} 27. Rc1 {[%clk 0:01:22.3]} 27... Rd6 {[%clk
0:02:20.6]} 28. Rc5 {[%clk 0:01:17.1]} 28... Rfd8 {[%clk 0:02:16.6]} 29. h3
{[%clk 0:01:11.9]} 29... b6 {[%clk 0:02:16.6]} 30. Rc4 {[%clk 0:01:07.1]} 30...
Ne7 {[%clk 0:02:16.5]} 31. Qb7 {[%clk 0:01:04.5]} 31... Kh7 {[%clk 0:02:12.7]}
32. Ng4 {[%clk 0:01:03.2]} 32... Qg6 {[%clk 0:01:59.1]} 33. Rxe7 {[%clk
0:01:01.3]} 33... f3 {[%clk 0:02:00]} 34. Qxf3 {[%clk 0:00:58.1]} 34... Rxd4
{[%clk 0:01:59.7]} 35. Rxd4 {[%clk 0:00:57]} 35... Rxd4 {[%clk 0:02:00.6]} 36.
Ne5 {[%clk 0:00:55.9]} 36... Qg5 {[%clk 0:01:57]} 37. Nc6 {[%clk 0:00:29]} 37...
Rd6 {[%clk 0:01:17.5]} 38. Qe4+ {[%clk 0:00:26.7]} 38... Rg6 {[%clk 0:01:18.1]}
39. Re6 {[%clk 0:00:22.8]} 39... h5 {[%clk 0:00:47.8]} 40. Ne7 {[%clk
0:00:22.2]} 40... Qc1+ {[%clk 0:00:47.6]} 41. Kh2 {[%clk 0:00:20.8]} 41... Qc7+
{[%clk 0:00:45.6]} 42. g3 {[%clk 0:00:21]} 42... Kh8 {[%clk 0:00:38]} 43. Nxg6+
{[%clk 0:00:20.8]} 43... Kg8 {[%clk 0:00:38.4]} 44. Re8+ {[%clk 0:00:20.6]}
44... Kh7 {[%clk 0:00:39]} 45. Rh8# {[%clk 0:00:20.6]} 1-0

[Event "Early-Titled-Tuesday-Blitz-March-19-2024"]
[Site "Chess.com"]
[Date "2024.03.19"]
[Round "10"]
[White "Flaccidmoves"]
[Black "GMAneta"]
[Result "1-0"]
[WhiteElo "2446"]
[BlackElo "2619"]
[TimeControl "180+1"]
[EndTime "9:54:56 PDT"]
[Termination "Flaccidmoves won on time"]

1. c4 {[%clk 0:02:58.3]} 1... Nf6 {[%clk 0:02:57.9]} 2. Nc3 {[%clk 0:02:58.5]}
2... g6 {[%clk 0:02:57.4]} 3. e4 {[%clk 0:02:58.8]} 3... d6 {[%clk 0:02:56.2]}
4. d4 {[%clk 0:02:59.3]} 4... Bg7 {[%clk 0:02:56.2]} 5. Nf3 {[%clk 0:03:00]}
5... O-O {[%clk 0:02:55.8]} 6. h3 {[%clk 0:03:00.7]} 6... Nbd7 {[%clk
0:02:52.1]} 7. Bd3 {[%clk 0:02:59]} 7... e5 {[%clk 0:02:51.4]} 8. d5 {[%clk
0:02:58.9]} 8... Nc5 {[%clk 0:02:50.6]} 9. Bc2 {[%clk 0:02:58.6]} 9... a5 {[%clk
0:02:49.1]} 10. Rb1 {[%clk 0:02:57.9]} 10... c6 {[%clk 0:02:48.6]} 11. O-O
{[%clk 0:02:48]} 11... cxd5 {[%clk 0:02:45.4]} 12. cxd5 {[%clk 0:02:47.2]} 12...
Bd7 {[%clk 0:02:44.8]} 13. Be3 {[%clk 0:02:43.7]} 13... Rc8 {[%clk 0:02:43]} 14.
Nd2 {[%clk 0:02:34.5]} 14... b5 {[%clk 0:02:41.7]} 15. a4 {[%clk 0:02:06.2]}
15... bxa4 {[%clk 0:02:32.8]} 16. Ra1 {[%clk 0:02:04.3]} 16... Qb6 {[%clk
0:02:27.6]} 17. Nc4 {[%clk 0:02:01.9]} 17... Qa6 {[%clk 0:02:27]} 18. Na3 {[%clk
0:01:42.1]} 18... Rb8 {[%clk 0:02:12.5]} 19. Bxc5 {[%clk 0:01:38.5]} 19... dxc5
{[%clk 0:02:12.2]} 20. Bxa4 {[%clk 0:01:38.3]} 20... Rxb2 {[%clk 0:02:11.2]} 21.
Bxd7 {[%clk 0:01:28.9]} 21... Nxd7 {[%clk 0:02:12.1]} 22. d6 {[%clk 0:01:26.6]}
22... Rb4 {[%clk 0:02:10.1]} 23. Nc2 {[%clk 0:01:09.5]} 23... Nb6 {[%clk
0:01:55.8]} 24. Nxb4 {[%clk 0:00:59.9]} 24... cxb4 {[%clk 0:01:55.9]} 25. Nd5
{[%clk 0:01:00.3]} 25... Nc4 {[%clk 0:01:49.7]} 26. d7 {[%clk 0:00:51.6]} 26...
Rd8 {[%clk 0:01:45.9]} 27. Nxb4 {[%clk 0:00:45.2]} 27... Qb5 {[%clk 0:01:44]}
28. Nd5 {[%clk 0:00:42.9]} 28... Rxd7 {[%clk 0:01:41.1]} 29. Rb1 {[%clk
0:00:40.5]} 29... Qc6 {[%clk 0:01:39.6]} 30. Rb8+ {[%clk 0:00:39.9]} 30... Bf8
{[%clk 0:01:39.4]} 31. Qc1 {[%clk 0:00:33.6]} 31... a4 {[%clk 0:01:34.8]} 32.
Qh6 {[%clk 0:00:31.1]} 32... Qc5 {[%clk 0:01:32.5]} 33. Nf6+ {[%clk 0:00:30.4]}
1-0

[Event "Early-Titled-Tuesday-Blitz-March-19-2024"]
[Site "Chess.com"]
[Date "2024.03.19"]
[Round "10"]
[White "GoltsevDmitry2000"]
[Black "LLariMarc"]
[Result "1-0"]
[WhiteElo "2765"]
[BlackElo "2471"]
[TimeControl "180+1"]
[EndTime "9:54:57 PDT"]
[Termination "GoltsevDmitry2000 won by checkmate"]

1. e4 {[%clk 0:01:40.1]} 1... e6 {[%clk 0:02:59.4]} 2. d4 {[%clk 0:01:40.2]}
2... d5 {[%clk 0:03:00.3]} 3. exd5 {[%clk 0:01:41.1]} 3... exd5 {[%clk
0:03:00.5]} 4. Nf3 {[%clk 0:01:42]} 4... Bd6 {[%clk 0:03:00.5]} 5. c4 {[%clk
0:01:42.9]} 5... dxc4 {[%clk 0:02:58.3]} 6. Bxc4 {[%clk 0:01:43.3]} 6... Nf6
{[%clk 0:02:49]} 7. O-O {[%clk 0:01:43.3]} 7... O-O {[%clk 0:02:49.5]} 8. Nc3
{[%clk 0:01:43.3]} 8... c6 {[%clk 0:02:48.4]} 9. Bg5 {[%clk 0:01:43.4]} 9...
Nbd7 {[%clk 0:02:48.3]} 10. Re1 {[%clk 0:01:43.7]} 10... h6 {[%clk 0:02:47.6]}
11. Bh4 {[%clk 0:01:43.4]} 11... Re8 {[%clk 0:02:48.1]} 12. Qb3 {[%clk
0:01:41.8]} 12... Rxe1+ {[%clk 0:02:42.8]} 13. Rxe1 {[%clk 0:01:42.7]} 13... Qf8
{[%clk 0:02:43.3]} 14. Ne5 {[%clk 0:01:41.6]} 14... Bxe5 {[%clk 0:02:27.7]} 15.
dxe5 {[%clk 0:01:42.5]} 15... Nc5 {[%clk 0:02:28]} 16. Qc2 {[%clk 0:01:36.5]}
16... Ne8 {[%clk 0:02:22.7]} 17. b4 {[%clk 0:01:25.4]} 17... Be6 {[%clk
0:02:18.8]} 18. bxc5 {[%clk 0:01:14.8]} 18... Bxc4 {[%clk 0:02:18.8]} 19. Ne4
{[%clk 0:01:15.5]} 19... Bd5 {[%clk 0:02:16.6]} 20. Nd6 {[%clk 0:01:14.8]} 20...
b6 {[%clk 0:02:09.9]} 21. Nf5 {[%clk 0:01:09.6]} 21... Qxc5 {[%clk 0:02:04]} 22.
Qd2 {[%clk 0:01:09.8]} 22... Qc4 {[%clk 0:01:44.4]} 23. h3 {[%clk 0:00:57.7]}
23... Kh7 {[%clk 0:01:33.3]} 24. Bf6 {[%clk 0:00:51.6]} 24... Nxf6 {[%clk
0:00:56.2]} 25. exf6 {[%clk 0:00:50.5]} 25... Be6 {[%clk 0:00:53.1]} 26. Nxg7
{[%clk 0:00:46.4]} 26... Qd5 {[%clk 0:00:14.7]} 27. Qf4 {[%clk 0:00:46.2]} 27...
Qg5 {[%clk 0:00:13.5]} 28. Nxe6 {[%clk 0:00:43.4]} 28... fxe6 {[%clk 0:00:12.8]}
29. Qc7+ {[%clk 0:00:43.9]} 29... Kg6 {[%clk 0:00:10]} 30. Qg7+ {[%clk 0:00:38]}
30... Kf5 {[%clk 0:00:10.6]} 31. g4+ {[%clk 0:00:34.3]} 31... Kf4 {[%clk
0:00:09.9]} 32. Qd7 {[%clk 0:00:30.2]} 32... Qxf6 {[%clk 0:00:09]} 33. Qd2+
{[%clk 0:00:28.4]} 33... Kf3 {[%clk 0:00:07.3]} 34. Qe3# {[%clk 0:00:27.3]} 1-0

[Event "Early-Titled-Tuesday-Blitz-March-19-2024"]
[Site "Chess.com"]
[Date "2024.03.19"]
[Round "10"]
[White "Chernov_Alexander_A"]
[Black "Dewarfd"]
[Result "0-1"]
[WhiteElo "2262"]
[BlackElo "2096"]
[TimeControl "180+1"]
[EndTime "9:54:57 PDT"]
[Termination "Dewarfd won by checkmate"]

1. d4 {[%clk 0:03:00.9]} 1... Nf6 {[%clk 0:02:58.9]} 2. Nf3 {[%clk 0:03:00.4]}
2... g6 {[%clk 0:02:58]} 3. Nc3 {[%clk 0:02:59.5]} 3... d5 {[%clk 0:02:57.2]} 4.
Bg5 {[%clk 0:02:58.7]} 4... Bg7 {[%clk 0:02:57.2]} 5. e3 {[%clk 0:02:58.8]} 5...
O-O {[%clk 0:02:55.5]} 6. Bd3 {[%clk 0:02:58.7]} 6... c5 {[%clk 0:02:52.7]} 7.
O-O {[%clk 0:02:58.4]} 7... b6 {[%clk 0:02:52.3]} 8. Re1 {[%clk 0:02:58.4]} 8...
c4 {[%clk 0:02:52.2]} 9. Bf1 {[%clk 0:02:57.6]} 9... Nfd7 {[%clk 0:02:51.3]} 10.
Nxd5 {[%clk 0:02:54.3]} 10... f6 {[%clk 0:02:50.8]} 11. Bh4 {[%clk 0:02:51.9]}
11... Bb7 {[%clk 0:02:46.5]} 12. Bxc4 {[%clk 0:02:49.5]} 12... Kh8 {[%clk
0:02:40.2]} 13. Bb3 {[%clk 0:02:40.9]} 13... a5 {[%clk 0:02:38.5]} 14. a4 {[%clk
0:02:39.7]} 14... Nc6 {[%clk 0:02:29.9]} 15. Bg3 {[%clk 0:02:36.3]} 15... e5
{[%clk 0:02:27.6]} 16. dxe5 {[%clk 0:02:30.5]} 16... fxe5 {[%clk 0:02:27.6]} 17.
e4 {[%clk 0:02:11.4]} 17... Nc5 {[%clk 0:02:22.9]} 18. Bc4 {[%clk 0:02:10]}
18... Bc8 {[%clk 0:02:09.9]} 19. h3 {[%clk 0:02:04.1]} 19... Ne6 {[%clk
0:02:00.4]} 20. c3 {[%clk 0:02:02]} 20... Nc5 {[%clk 0:01:47.3]} 21. Bb5 {[%clk
0:01:58.9]} 21... Na7 {[%clk 0:01:24.7]} 22. Bc4 {[%clk 0:01:50.4]} 22... Nc6
{[%clk 0:01:24]} 23. Bh4 {[%clk 0:01:49.8]} 23... Qd6 {[%clk 0:01:10.8]} 24.
Nxb6 {[%clk 0:01:48.4]} 24... Qxd1 {[%clk 0:01:03.1]} 25. Raxd1 {[%clk 0:01:47]}
25... Rb8 {[%clk 0:01:03.1]} 26. Nxc8 {[%clk 0:01:41.7]} 26... Rfxc8 {[%clk
0:01:00.3]} 27. Bb5 {[%clk 0:01:40.3]} 27... Na7 {[%clk 0:00:57.6]} 28. c4
{[%clk 0:01:39.9]} 28... Nxb5 {[%clk 0:00:55.7]} 29. axb5 {[%clk 0:01:38.7]}
29... Na4 {[%clk 0:00:54.3]} 30. b3 {[%clk 0:01:35.7]} 30... Nc5 {[%clk
0:00:54.4]} 31. Rc1 {[%clk 0:01:26]} 31... Nd3 {[%clk 0:00:42.4]} 32. Kf1 {[%clk
0:01:14.5]} 32... Nxe1 {[%clk 0:00:34.1]} 33. Nxe1 {[%clk 0:01:14.3]} 33... a4
{[%clk 0:00:34.3]} 34. bxa4 {[%clk 0:01:13.1]} 34... Ra8 {[%clk 0:00:34.4]} 35.
c5 {[%clk 0:01:05]} 35... Rxa4 {[%clk 0:00:33.9]} 36. b6 {[%clk 0:01:04.8]}
36... Rb4 {[%clk 0:00:33.1]} 37. Be7 {[%clk 0:01:02.3]} 37... Rxb6 {[%clk
0:00:29]} 38. cxb6 {[%clk 0:00:50.9]} 38... Rxc1 {[%clk 0:00:28.1]} 39. Bd6
{[%clk 0:00:48.7]} 39... Rb1 {[%clk 0:00:24.3]} 40. Bc7 {[%clk 0:00:48.5]} 40...
Bf8 {[%clk 0:00:22.6]} 41. Bxe5+ {[%clk 0:00:43.3]} 41... Kg8 {[%clk 0:00:21.8]}
42. Bd4 {[%clk 0:00:43.2]} 42... Bb4 {[%clk 0:00:19.1]} 43. b7 {[%clk
0:00:39.2]} 43... Rxe1# {[%clk 0:00:17.3]} 0-1

[Event "Early-Titled-Tuesday-Blitz-March-19-2024"]
[Site "Chess.com"]
[Date "2024.03.19"]
[Round "10"]
[White "javirec"]
[Black "UnTucopalaTimba"]
[Result "1-0"]
[WhiteElo "2254"]
[BlackElo "2003"]
[TimeControl "180+1"]
[EndTime "9:55:01 PDT"]
[Termination "javirec won on time"]

1. e4 {[%clk 0:02:55.6]} 1... c6 {[%clk 0:02:59.6]} 2. d4 {[%clk 0:02:52.9]}
2... d5 {[%clk 0:02:59.5]} 3. f3 {[%clk 0:02:52.4]} 3... e6 {[%clk 0:02:57.7]}
4. Nc3 {[%clk 0:02:52]} 4... Bb4 {[%clk 0:02:57.1]} 5. Bd3 {[%clk 0:02:48.7]}
5... Ne7 {[%clk 0:02:54.2]} 6. Ne2 {[%clk 0:02:46.8]} 6... Nd7 {[%clk
0:02:52.5]} 7. O-O {[%clk 0:02:46.6]} 7... O-O {[%clk 0:02:49.2]} 8. Be3 {[%clk
0:02:44.5]} 8... Qc7 {[%clk 0:02:46.2]} 9. a3 {[%clk 0:02:43.1]} 9... Ba5 {[%clk
0:02:42.4]} 10. Qe1 {[%clk 0:02:42.1]} 10... a6 {[%clk 0:02:29.4]} 11. b4 {[%clk
0:02:26.2]} 11... Bb6 {[%clk 0:02:28.9]} 12. Na4 {[%clk 0:02:19.1]} 12... Ba7
{[%clk 0:02:27.5]} 13. c3 {[%clk 0:02:19.1]} 13... e5 {[%clk 0:02:22]} 14. Nc5
{[%clk 0:02:15]} 14... Rb8 {[%clk 0:01:41.4]} 15. Rc1 {[%clk 0:02:10.8]} 15...
a5 {[%clk 0:01:38.5]} 16. exd5 {[%clk 0:02:07.8]} 16... Nxd5 {[%clk 0:01:35.6]}
17. Bd2 {[%clk 0:02:07.5]} 17... Nxc5 {[%clk 0:01:32.8]} 18. Qh4 {[%clk
0:02:03]} 18... Nxd3 {[%clk 0:01:29.7]} 19. Rcd1 {[%clk 0:02:01.6]} 19... exd4
{[%clk 0:01:19.7]} 20. c4 {[%clk 0:01:56]} 20... Nf6 {[%clk 0:00:59.3]} 21. Bg5
{[%clk 0:01:48.9]} 21... Ne5 {[%clk 0:00:49.4]} 22. c5 {[%clk 0:01:44.6]} 22...
d3 {[%clk 0:00:43.4]} 23. Ng3 {[%clk 0:01:43.6]} 23... Nd5 {[%clk 0:00:36.2]}
24. Ne4 {[%clk 0:01:40.8]} 24... Bf5 {[%clk 0:00:32.8]} 25. Nd6 {[%clk
0:01:39.3]} 25... Bg6 {[%clk 0:00:28]} 26. f4 {[%clk 0:01:39.4]} 26... Ne3
{[%clk 0:00:20.6]} 27. fxe5 {[%clk 0:01:39.2]} 27... Nxf1 {[%clk 0:00:19.8]} 28.
Rxf1 {[%clk 0:01:36.1]} 28... axb4 {[%clk 0:00:17.6]} 29. axb4 {[%clk
0:01:35.3]} 29... Qd7 {[%clk 0:00:17.4]} 30. Be7 {[%clk 0:01:31.6]} 30... Rfe8
{[%clk 0:00:16.6]} 31. Nxe8 {[%clk 0:01:30.3]} 31... Rxe8 {[%clk 0:00:16.5]} 32.
Bd6 {[%clk 0:01:29.7]} 32... b6 {[%clk 0:00:15.5]} 33. Qd4 {[%clk 0:01:26.7]}
33... bxc5 {[%clk 0:00:15.3]} 34. bxc5 {[%clk 0:01:27.6]} 34... Bb8 {[%clk
0:00:14.6]} 35. h4 {[%clk 0:01:20]} 35... Bxd6 {[%clk 0:00:12.7]} 36. cxd6
{[%clk 0:01:20.9]} 36... Rd8 {[%clk 0:00:10.3]} 37. g4 {[%clk 0:01:18.7]} 37...
h6 {[%clk 0:00:08.8]} 38. h5 {[%clk 0:01:14.7]} 38... Bh7 {[%clk 0:00:08.5]} 39.
Ra1 {[%clk 0:01:12.6]} 39... c5 {[%clk 0:00:07.9]} 40. Qf4 {[%clk 0:01:04.5]}
40... c4 {[%clk 0:00:05.6]} 41. Qxc4 {[%clk 0:01:03.4]} 41... Rc8 {[%clk
0:00:03.7]} 42. Qd4 {[%clk 0:00:57]} 42... g6 {[%clk 0:00:01.1]} 43. Ra7 {[%clk
0:00:56.2]} 1-0

[Event "Early-Titled-Tuesday-Blitz-March-19-2024"]
[Site "Chess.com"]
[Date "2024.03.19"]
[Round "10"]
[White "Happy1712Drummer"]
[Black "bobo_panda"]
[Result "0-1"]
[WhiteElo "2449"]
[BlackElo "2357"]
[TimeControl "180+1"]
[EndTime "9:55:03 PDT"]
[Termination "bobo_panda won on time"]

1. e4 {[%clk 0:03:00.9]} 1... e6 {[%clk 0:02:59.5]} 2. d4 {[%clk 0:03:00.7]}
2... d5 {[%clk 0:03:00.3]} 3. e5 {[%clk 0:03:01.1]} 3... c5 {[%clk 0:03:00.2]}
4. c3 {[%clk 0:03:01.6]} 4... Nc6 {[%clk 0:03:00.7]} 5. Nf3 {[%clk 0:03:01.9]}
5... Bd7 {[%clk 0:03:01.2]} 6. Be2 {[%clk 0:03:01]} 6... f6 {[%clk 0:03:01.4]}
7. exf6 {[%clk 0:02:43.4]} 7... Nxf6 {[%clk 0:03:02.3]} 8. O-O {[%clk
0:02:43.7]} 8... Bd6 {[%clk 0:03:01.1]} 9. dxc5 {[%clk 0:02:26.1]} 9... Bxc5
{[%clk 0:03:01]} 10. b4 {[%clk 0:02:19.6]} 10... Bd6 {[%clk 0:02:59.7]} 11. a3
{[%clk 0:02:18.7]} 11... e5 {[%clk 0:02:53.7]} 12. Bg5 {[%clk 0:01:58.6]} 12...
Be6 {[%clk 0:02:52.1]} 13. Re1 {[%clk 0:01:43.1]} 13... O-O {[%clk 0:02:44.6]}
14. Bb5 {[%clk 0:01:26.1]} 14... e4 {[%clk 0:02:39.4]} 15. Bxc6 {[%clk
0:00:56.4]} 15... bxc6 {[%clk 0:02:37.9]} 16. Nd4 {[%clk 0:00:56.2]} 16... Bd7
{[%clk 0:02:37.3]} 17. h3 {[%clk 0:00:52.8]} 17... Qc7 {[%clk 0:02:24.6]} 18.
Nd2 {[%clk 0:00:50.8]} 18... h6 {[%clk 0:02:18.6]} 19. Be3 {[%clk 0:00:50.6]}
19... Nh7 {[%clk 0:02:05.7]} 20. c4 {[%clk 0:00:44.3]} 20... a5 {[%clk
0:02:01.1]} 21. Rc1 {[%clk 0:00:33.5]} 21... Qb7 {[%clk 0:01:54.5]} 22. cxd5
{[%clk 0:00:25.6]} 22... cxd5 {[%clk 0:01:52.6]} 23. b5 {[%clk 0:00:22.9]} 23...
Bxa3 {[%clk 0:01:38.2]} 24. Rb1 {[%clk 0:00:18.1]} 24... Nf6 {[%clk 0:01:31.6]}
25. Qb3 {[%clk 0:00:17.7]} 25... Bb4 {[%clk 0:01:31.8]} 26. Red1 {[%clk
0:00:16.1]} 26... Rac8 {[%clk 0:01:30.9]} 27. Nf1 {[%clk 0:00:15]} 27... Rc3
{[%clk 0:01:30.6]} 28. Qa2 {[%clk 0:00:15.4]} 28... Kh8 {[%clk 0:01:29.5]} 29.
Ng3 {[%clk 0:00:14.8]} 29... Rfc8 {[%clk 0:01:27]} 30. Nge2 {[%clk 0:00:14.6]}
30... R3c4 {[%clk 0:01:25]} 31. Rbc1 {[%clk 0:00:10.2]} 31... Bxb5 {[%clk
0:01:22.9]} 32. Nxb5 {[%clk 0:00:09]} 32... Qxb5 {[%clk 0:01:23.8]} 33. Rxc4
{[%clk 0:00:06.7]} 33... Qxc4 {[%clk 0:01:24.3]} 34. Qxc4 {[%clk 0:00:05.3]}
34... Rxc4 {[%clk 0:01:24]} 35. Bd4 {[%clk 0:00:04.4]} 35... a4 {[%clk
0:01:11.8]} 36. Bxf6 {[%clk 0:00:03.1]} 36... gxf6 {[%clk 0:01:12.7]} 37. Rxd5
{[%clk 0:00:03.7]} 37... a3 {[%clk 0:01:13]} 38. Rd8+ {[%clk 0:00:03.9]} 38...
Kh7 {[%clk 0:01:12.6]} 39. Ra8 {[%clk 0:00:04.8]} 39... Rc2 {[%clk 0:01:08.9]}
40. Nd4 {[%clk 0:00:04.3]} 40... Rc1+ {[%clk 0:01:06.3]} 41. Kh2 {[%clk
0:00:04.4]} 41... Bd6+ {[%clk 0:01:06.7]} 42. g3 {[%clk 0:00:04.9]} 42... Be5
{[%clk 0:01:03.9]} 43. Ra7+ {[%clk 0:00:04.2]} 43... Kg6 {[%clk 0:01:03.3]} 44.
Nb5 {[%clk 0:00:03.3]} 44... Bb2 {[%clk 0:00:57.8]} 45. Ra4 {[%clk 0:00:01.4]}
45... Bd4 {[%clk 0:00:58.4]} 46. Rxd4 {[%clk 0:00:01.5]} 46... a2 {[%clk
0:00:58.5]} 47. Ra4 {[%clk 0:00:01.5]} 47... a1=Q {[%clk 0:00:58.8]} 48. Rxa1
{[%clk 0:00:01.8]} 48... Rxa1 {[%clk 0:00:59.7]} 49. Kg2 {[%clk 0:00:02]} 49...
f5 {[%clk 0:01:00.6]} 50. Nd4 {[%clk 0:00:01.6]} 50... Ra2 {[%clk 0:01:01]} 0-1

[Event "Early-Titled-Tuesday-Blitz-March-19-2024"]
[Site "Chess.com"]
[Date "2024.03.19"]
[Round "10"]
[White "arnash_bauyrzhan"]
[Black "guillembaches"]
[Result "0-1"]
[WhiteElo "2369"]
[BlackElo "2562"]
[TimeControl "180+1"]
[EndTime "9:55:04 PDT"]
[Termination "guillembaches won on time"]

1. e4 {[%clk 0:03:00.9]} 1... d5 {[%clk 0:03:00.3]} 2. exd5 {[%clk 0:02:58.9]}
2... Qxd5 {[%clk 0:03:01.2]} 3. Nc3 {[%clk 0:02:58.7]} 3... Qa5 {[%clk
0:03:01.3]} 4. d4 {[%clk 0:02:58.8]} 4... Nf6 {[%clk 0:03:01.7]} 5. Nf3 {[%clk
0:02:58.7]} 5... Bf5 {[%clk 0:03:01.7]} 6. Bc4 {[%clk 0:02:50.6]} 6... e6 {[%clk
0:02:58.9]} 7. O-O {[%clk 0:02:50]} 7... Bb4 {[%clk 0:02:58.8]} 8. Bd2 {[%clk
0:02:49.1]} 8... Nc6 {[%clk 0:02:57.6]} 9. a3 {[%clk 0:02:46.9]} 9... Bxc3
{[%clk 0:02:57.9]} 10. Bxc3 {[%clk 0:02:45.3]} 10... Qb6 {[%clk 0:02:58.4]} 11.
Bd3 {[%clk 0:02:43.3]} 11... Bg4 {[%clk 0:02:45.5]} 12. h3 {[%clk 0:02:40.9]}
12... Bh5 {[%clk 0:02:43.6]} 13. d5 {[%clk 0:01:49.5]} 13... Nxd5 {[%clk
0:02:20.3]} 14. Bxg7 {[%clk 0:01:48.7]} 14... Rg8 {[%clk 0:02:19.7]} 15. Bh6
{[%clk 0:01:48.3]} 15... O-O-O {[%clk 0:02:05]} 16. Kh1 {[%clk 0:01:01.3]} 16...
Ne5 {[%clk 0:01:56.3]} 17. Qe2 {[%clk 0:00:42.5]} 17... Nxf3 {[%clk 0:01:23.1]}
18. gxf3 {[%clk 0:00:42.4]} 18... Qd4 {[%clk 0:01:20.6]} 19. Rg1 {[%clk
0:00:18.3]} 19... Qh4 {[%clk 0:01:11.5]} 20. Kh2 {[%clk 0:00:18]} 20... Nf4
{[%clk 0:01:01.9]} 21. Bxf4 {[%clk 0:00:13]} 21... Qxf4+ {[%clk 0:01:00.3]} 22.
Rg3 {[%clk 0:00:13]} 22... Rxg3 {[%clk 0:00:33.9]} 23. fxg3 {[%clk 0:00:11.7]}
23... Qxf3 {[%clk 0:00:34.5]} 24. Qxf3 {[%clk 0:00:11.3]} 24... Bxf3 {[%clk
0:00:35.1]} 25. Rf1 {[%clk 0:00:10.8]} 25... Bh5 {[%clk 0:00:34.8]} 26. g4
{[%clk 0:00:10.6]} 26... Bg6 {[%clk 0:00:35]} 27. Rf3 {[%clk 0:00:07.5]} 27...
Rd7 {[%clk 0:00:29.8]} 28. Kg3 {[%clk 0:00:06.8]} 28... c5 {[%clk 0:00:30]} 29.
h4 {[%clk 0:00:04.1]} 29... Kd8 {[%clk 0:00:29.4]} 30. h5 {[%clk 0:00:03.5]}
30... Bxd3 {[%clk 0:00:29.5]} 31. cxd3 {[%clk 0:00:03.5]} 31... Ke7 {[%clk
0:00:29.4]} 32. Kf4 {[%clk 0:00:03]} 32... h6 {[%clk 0:00:27.1]} 33. g5 {[%clk
0:00:02.4]} 33... Rd4+ {[%clk 0:00:27.6]} 0-1